Cogmind - Beta 16 @@@ ROGUE MODE // 2026.01.21 @ 21:00:44 Player: YoKa Result: Destroyed by 8R-AWN with 8R-AWN's Boregun Performance ------------- Evolutions (0) 0 Regions Visited (3) 600 Robots Destroyed (18) 90 Value Destroyed (483) 483 Prototype IDs (3) 60 Alien Tech Used (0) 0 Bonus (-668) -668 TOTAL SCORE: 565 Bonus ------- Friendly Fire -668 Cogmind --------- Core Integrity 0/250 Matter 117/300 Energy 100/100 System Corruption 3% Temperature Cool (0) Movement Core (200) Ox3 Location -10/Exiles Parts ------- > --- POWER (1) -------- (None) > --- PROPULSION (2) --- (None) > --- UTILITY (2) ------ Medium Storage Unit > --- WEAPON (2) ------- (None) > --- INVENTORY (10) --- Ion Engine Light Ion Engine Gravmag Array Cesium-ion Thruster Cargo Storage Unit Advanced Transmission Jammer Mining Laser Peak State ------------ > --- POWER ------------ Ion Engine > --- PROPULSION ------- Light Treads Light Treads > --- UTILITY ---------- Small Storage Unit Medium Storage Unit > --- WEAPON ----------- Assault Cannon Improved Grenade Launcher > --- INVENTORY -------- Ion Engine Light Ion Engine Light Treads Cesium-ion Thruster Cargo Storage Unit Grenade Launcher Mining Laser [Rating: 12] Favorites ----------- Power Ion Engine Engine Ion Engine Propulsion Light Treads Treads Light Treads Utility Small Storage Unit Storage Small Storage Unit Weapon Assault Rifle Energy Gun EM Pulse Gun Ballistic Gun Assault Rifle Ballistic Cannon Assault Cannon Launcher Grenade Launcher Build | -11 -10 -10 -10 ------- Run | Yrd Mat Min Exi Slots Evolved . | . . . . Power . | . . . . Propulsion . | . . . . Utility . | . . . . Weapon . | . . . . Parts Attached 14 | 7 3 3 1 Power 1 | 1 . . . Engine 1 | 1 . . . Core . | . . . . Reactor . | . . . . Propulsion 4 | 2 1 . 1 Treads 4 | 2 1 . 1 Leg . | . . . . Wheel . | . . . . Hover . | . . . . Flight . | . . . . Utility 2 | 1 . 1 . Device . | . . . . Storage 2 | 1 . 1 . Processor . | . . . . Hackware . | . . . . Protection . | . . . . Artifact . | . . . . Weapon 7 | 3 2 2 . Energy Gun 2 | 2 . . . Energy Cannon . | . . . . Ballistic Gun 1 | 1 . . . Ballistic Cannon 1 | . . 1 . Launcher 3 | . 2 1 . Special Weapon . | . . . . Impact Weapon . | . . . . Slashing Weapon . | . . . . Piercing Weapon . | . . . . Special Melee Weapon . | . . . . Unidentified Prototypes . | . . . . Corrupted Parts 1 | . . 1 . System Corruption 3 | . . 3 . Parts Lost 9 | . 2 . 7 Power 1 | . . . 1 Propulsion 4 | . 1 . 3 Utility . | . . . . Weapon 4 | . 1 . 3 Highest Loss Streak 7 | . 1 . 7 To Critical Strikes 3 | . . . 3 Average Backups 4 | 1 3 6 6 Power 1 | 1 1 2 2 Propulsion 1 | . . 1 1 Utility . | . . 1 1 Weapon . | . . 1 1 Tool/Special . | . . . . Unused Backups 5 | . . . 5 Power 2 | . . . 2 Propulsion 1 | . . . 1 Utility 1 | . . . 1 Weapon 1 | . . . 1 Tool/Special . | . . . . Average Slot Usage (%) 81 | . 80 85 73 Engine 13 | . 14 14 10 Treads 25 | . 24 28 26 Storage 14 | . 14 14 14 Energy Gun 1 | . 3 . . Ballistic Gun 9 | . 13 2 . Ballistic Cannon 4 | . . 12 12 Launcher 11 | . 11 14 11 Peak Build Rating 12 | 6 6 12 11 Average Rating 7 | 4 5 10 8 On Entrance 5 | . 6 6 11 Avg Prop Armor Cover (%) . | . . . . Naked Turns . | . . . . Heaviest Build 26 | 14 15 26 26 Greatest Support 40 | 40 40 40 40 Greatest Overweight (x) 3 | . . . 3 Average Overweight (x) . | . . . . Largest Inventory Capacity 10 | 8 8 10 10 Average Capacity 8 | 7 8 8 10 Most Carried 10 | 5 7 8 10 Average Carried 5 | 1 4 7 7 Final Capacity 10 | 8 8 10 10 Final Carried 9 | 1 5 8 9 Class Distribution -------------------- 100% | Mutant Dominant Class ---------------- Mutant | -10/Materials Mutant | -10/Mines Mutant | -10/Exiles Resources | -11 -10 -10 -10 ----------- Run | Yrd Mat Min Exi Matter Collected 622 | 233 357 32 . Remotely . | . . . . Salvage Created 505 | 55 437 . 13 Parts 40 | 2 30 . 8 Haulers Intercepted 1 | . 1 . . Recyclers Shooed . | . . . . Parts Field Recycled . | . . . . Retrieved Matter . | . . . . Parts Self-Destructed . | . . . . Prevented . | . . . . Parts Restored . | . . . . Kills | -11 -10 -10 -10 ------- Run | Yrd Mat Min Exi Combat Hostiles Destroyed 15 | . 12 . 3 Guns 7 | . 7 . . Cannons 1 | . . . 1 AOE 7 | . 5 . 2 Classes Destroyed 7 | 1 5 . 1 Worker 1 | . 1 . . Hauler 1 | . 1 . . Recycler 1 | 1 . . . Watcher 2 | . 2 . . Swarmer 3 | . 3 . . Grunt 9 | . 9 . . Assembled 3 | . . . 3 Best Kill Streak 3 | 1 3 . 3 Combat Bots Only 3 | . 3 . 3 Max Kills in Single Turn 3 | 1 3 . 2 Gunslinging . | . . . . Exploded 2 | . 2 . 2 Melee . | . . . . Uniques/NPCs Destroyed 1 | . . . 1 EX-HEX (-10/Exiles) Combat | -11 -10 -10 -10 -------- Run | Yrd Mat Min Exi Hostile Shots Fired 118 | . 57 . 61 Missed 40 | . 20 . 20 Hits 78 | . 37 . 41 Melee 3 | . . . 3 Projectile 75 | . 37 . 38 AOE 1 | . . 1 . Critical Strikes 10 | . . . 10 Damage Taken 1407 | . 601 106 700 Core 250 | . 114 . 136 Absorbed by Shields . | . . . . Regen/Repaired (Parts) 101 | . 101 . . Core Remaining (%) 100 | 100 . . . Volleys Fired 71 | 2 58 . 11 Largest 2 | 2 2 . 2 Hottest 73 | 60 60 . 73 Shots Fired 90 | 4 66 . 20 Gun 53 | 4 49 . . Cannon 10 | . . . 10 Launcher 27 | . 17 . 10 Special . | . . . . Kinetic 54 | 2 42 . 10 Thermal . | . . . . Explosive 27 | . 17 . 10 Electromagnetic 9 | 2 7 . . Robot Hit Streak 9 | 1 9 . 4 Robot Miss Streak 3 | 1 3 . 2 Penetration Max . | . . . . Secondary Targets . | . . . . Shots Hit Robots 52 | 2 39 . 11 Core Hits 37 | 2 26 . 9 Critical Kills . | . . . . Critical Parts Destroyed . | . . . . Critical Strikes . | . . . . Melee Attacks . | . . . . Impact . | . . . . Slashing . | . . . . Piercing . | . . . . Sneak Attacks . | . . . . Combat Hostiles . | . . . . Follow-up Attacks . | . . . . Damage Inflicted 1544 | 42 1090 10 402 Guns 482 | 42 440 . . Cannons 88 | . . . 88 Explosions 956 | . 642 . 314 Melee . | . . . . Ramming 18 | . 8 10 . Kinetic 518 | 27 403 . 88 Thermal 292 | . 292 . . Explosive 664 | . 350 . 314 Electromagnetic 52 | 15 37 . . Impact . | . . . . Slashing . | . . . . Piercing . | . . . . Highest Corruption 3 | . . 3 3 Average Corruption 3 | . . 3 3 Corruption Purged . | . . . . Corruption Blocked . | . . . . Effects 11 | . . 7 4 Message Errors 3 | . . 1 2 Matter Fused 1 | . . 1 . Energy Discharges 1 | . . 1 . Parts Fused 1 | . . 1 . Data Loss (minor) 2 | . . 2 . Misfires 1 | . . . 1 Alerts 2 | . . 1 1 Overload Shots . | . . . . Overflow Damage 100 | . 83 . 17 Projectiles . | . . . . Explosions 100 | . 83 . 17 Melee . | . . . . Knockbacks 2 | . . 1 1 Impact 1 | . . 1 . Kinetic 1 | . . . 1 Secondary . | . . . . Self-Inflicted Damage 155 | . 155 . . Shots 5 | . 5 . . Rammed 3 | . 2 1 . Targets Rammed 3 | . 2 1 . Kicked . | . . . . Crushed . | . . . . Highest Temperature 24 | . 18 . 24 Average Temperature 11 | . 10 . 12 Received Heat Transfer 153 | . 153 . . Siege Activations . | . . . . Martial Activations . | . . . . Shielding Activations . | . . . . Robots Disrupted . | . . . . Combat Hostiles . | . . . . Robots Corrupted . | . . . . Combat Hostiles . | . . . . Parts Fried . | . . . . Impact Corruptions . | . . . . Robots Melted . | . . . . Combat Hostiles . | . . . . Parts Melted . | . . . . Heat Transferred 200 | . 200 . . Parts Sabotaged . | . . . . Parts Stolen . | . . . . Parts Stripped . | . . . . Power Chain Reactions . | . . . . Alert | -11 -10 -10 -10 ------- Run | Yrd Mat Min Exi Maximum Alert Level 1 | . 1 . . Low Security (%) 89 | 100 84 100 . Level 1 10 | . 15 . . Level 2 . | . . . . Level 3 . | . . . . Level 4 . | . . . . Level 5 . | . . . . High Security . | . . . . Max Security . | . . . . Peak Influence 263 | 5 263 54 . Initial 54 | . 3 54 . Average 106 | 1 161 6 . Influence Increases 599 | 5 594 . . Destroy 0b10 Robot/C 240 | . 240 . . Destroy 0b10 Robot/NC 25 | 5 20 . . Destroy Leader 56 | . 56 . . Successful Hack 40 | . 40 . . Disable Machine 120 | . 120 . . Destroy Structure 103 | . 103 . . Lose Combat Pursuer 15 | . 15 . . Influence Decreases 599 | . 459 140 . Entered New Map 88 | . 2 86 . Time Decay 491 | . 437 54 . Lost Part 20 | . 20 . . Squads Dispatched 2 | . 2 . . Investigation 2 | . 2 . . Extermination . | . . . . Reinforcement . | . . . . Assault . | . . . . Garrison . | . . . . Intercept . | . . . . Searches Triggered . | . . . . Construction Impeded . | . . . . Haulers Reinforced . | . . . . Active Scanning Responses . | . . . . Cargo Convoy Interrupts . | . . . . Stealth | -11 -10 -10 -10 --------- Run | Yrd Mat Min Exi Distress Signals 1 | . 1 . . Communications Jammed . | . . . . Distress Signals . | . . . . Times Spotted 33 | . 23 2 8 Peak Tracking Total 9 | . 4 2 9 Tactical Retreats 1 | . 1 . . Traps | -11 -10 -10 -10 ------- Run | Yrd Mat Min Exi Traps Triggered 2 | . 1 1 . Indirectly . | . . . . Trap Hack Attempts . | . . . . Triggered . | . . . . Disarmed . | . . . . Reprogrammed . | . . . . Reused . | . . . . Traps Extracted . | . . . . Installed . | . . . . Triggered . | . . . . Objects Rigged 2 | . 2 . . Exploded 1 | . 1 . . Machines | -11 -10 -10 -10 ---------- Run | Yrd Mat Min Exi Machines Disabled 13 | . 8 . 5 Max in Single Turn 4 | . 4 . 1 Machines Repaired . | . . . . Machines Dismantled . | . . . . Machines Sabotaged . | . . . . Overloaded Fab Kills . | . . . . Hacking | -11 -10 -10 -10 --------- Run | Yrd Mat Min Exi Machines Accessed 8 | . 7 1 . Terminals 6 | . 6 . . Fabricators . | . . . . Repair Stations 1 | . 1 . . Recycling Units . | . . . . Scanalyzers . | . . . . Garrison Access . | . . . . Total Hacks 19 | . 18 1 . Successful 12 | . 11 1 . Failed 7 | . 7 . . Catastrophic 1 | . 1 . . Database Lockouts . | . . . . Manual 15 | . 15 . . Terminals 14 | . 14 . . Fabricators . | . . . . Repair Stations 4 | . 4 . . Recycling Units . | . . . . Scanalyzers . | . . . . Garrison Access . | . . . . Terminal Hacks 4 | . 3 1 . Prototype ID Bank 1 | . 1 . . Open Door 1 | . . 1 . Branch Access Points 1 | . 1 . . Terminal Index 1 | . 1 . . Fabricator Hacks . | . . . . Repair Station Hacks 3 | . 3 . . Scan Component 2 | . 2 . . Repair 1 | . 1 . . Recycling Unit Hacks . | . . . . Scanalyzer . | . . . . Garrison Access Hacks . | . . . . Unauthorized Hacks 5 | . 5 . . Terminals 5 | . 5 . . Botnet 2 | . 2 . . Detonate 1 | . 1 . . Operators 2 | . 2 . . Fabricators . | . . . . Repair Stations . | . . . . Recycling Units . | . . . . Scanalyzers . | . . . . Garrison Access . | . . . . Data Cores Recovered . | . . . . Used . | . . . . Hacking Detections 4 | . 4 . . Full Trace Events 3 | . 3 . . Feedback Events . | . . . . Feedback Blocked . | . . . . Robot Schematics Acquired . | . . . . Robots Built . | . . . . Authchips . | . . . . Time . | . . . . Total Robot Build Rating . | . . . . Part Schematics Acquired . | . . . . Parts Built . | . . . . Authchips . | . . . . Time . | . . . . Total Part Build Rating . | . . . . Part Studies Acquired . | . . . . Parts Repaired 1 | . 1 . . Time 26 | . 26 . . Parts Recycled . | . . . . Recycled Matter . | . . . . Retrieved Matter . | . . . . Retrieved Components . | . . . . Parts Scanalyzed . | . . . . Part Schematics Acquired . | . . . . Parts Damaged . | . . . . Bothacking | -11 -10 -10 -10 ------------ Run | Yrd Mat Min Exi Used RIF Installer . | . . . . Robots Hacked . | . . . . Non-combat . | . . . . Combat . | . . . . Robot Hacks Applied . | . . . . Relay Couplers Released . | . . . . Fabnet Peak Effective % . | . . . . Robots Rewired . | . . . . Allies Hacked . | . . . . Hacks Repelled . | . . . . Allies | -11 -10 -10 -10 -------- Run | Yrd Mat Min Exi Total Allies 1 | . . 1 . Largest Group 1 | . . 1 . Highest-Rated Group 31 | . . 31 . Highest-Rated Ally 31 | . . 31 . Total Orders . | . . . . Ally Attacks 2 | . . 2 . Total Damage 20 | . . 20 . Kills . | . . . . Allies Corrupted . | . . . . Allies Melted . | . . . . Intel | -11 -10 -10 -10 ------- Run | Yrd Mat Min Exi Active Infowar (turns) . | . . . . Robot Analysis Total . | . . . . Derelict Logs Recovered 2 | . . 2 . Drone Launches . | . . . . Drone Recoveries . | . . . . Exploration | -11 -10 -10 -10 ------------- Run | Yrd Mat Min Exi Turns Passed 1925 | 79 1162 553 131 Spaces Moved 1049 | 39 618 335 57 Core 22 | 20 . . 2 Treads 1027 | 19 618 335 55 Legs . | . . . . Wheels . | . . . . Hover . | . . . . Flight . | . . . . Fastest Speed 50 | 50 160 160 160 Average Speed 157 | 103 160 160 161 Slowest Speed 200 | 160 160 160 200 Overloaded Moves . | . . . . Propulsion Burnouts . | . . . . Robots Hopped . | . . . . Potential Cave-ins 4 | . 4 . . Cave-ins Triggered . | . . . . Exploration Rate (%) 46 | 4 81 79 21 Regions Visited 3 Branch Regions 2 Pre-discovered Areas . | . . . . Known Exits Taken 2 | . 1 1 . Unknown Exits Taken 1 | 1 . . . Scrap Searched 2 | . . 2 . Spaces Dug 23 | . 23 . . Terrain Destroyed 160 | . 116 . 44 Melee . | . . . . Projectile 4 | . . . 4 AOE 156 | . 116 . 40 Terrain Rammed . | . . . . Walls Destroyed . | . . . . Machines Disabled . | . . . . Actions | -11 -10 -10 -10 --------- Run | Yrd Mat Min Exi Total 1227 | 73 724 351 79 Wait 63 | 19 34 7 3 Move 1046 | 38 617 334 57 Hop . | . . . . Pick Up 19 | 6 7 4 2 Fast Attach 3 | 2 . 1 . Attach 12 | 4 4 . 4 Detach 2 | . . . 2 Swap 4 | 1 1 2 . Drop 4 | 1 1 2 . Fire 71 | 2 58 . 11 Melee . | . . . . Ram . | . . . . Kick . | . . . . Crush 3 | . 2 1 . Escape Stasis . | . . . . Rewire . | . . . . Trap . | . . . . Miscellaneous . | . . . . Route ------- -11/Scrapyard -10/Materials (discovered 3 exits: [*Mat x2] / *Min) -10/Mines (discovered 3 exits: [*Mat x2] / *Exi) -10/Exiles History --------- Turn | Location | Event 9 | -11/Scrapyard | Discovered new exit (range 15) 80 | -11/Scrapyard | Entered Materials 175 | -10/Materials | Identified exit to Mines 309 | -10/Materials | Build established: Mutant 731 | -10/Materials | Discovered new exit (range 13) 918 | -10/Materials | Repaired Lgt. Treads 1089 | -10/Materials | Discovered new exit (range 7) 1242 | -10/Materials | Entered Mines 1243 | -10/Mines | Assembled infested the area 1245 | -10/Mines | Received a Mining Laser from a helpful Derelict 1294 | -10/Mines | Discovered new exit (range 15) 1296 | -10/Mines | Met a Derelict who couldn't figure out how to use a Trap Extractor 1362 | -10/Mines | Learned location of 1 exit from Materials 1627 | -10/Mines | Identified exit to Exiles 1757 | -10/Mines | Discovered new exit (range 10) 1795 | -10/Mines | Entered Exiles 1835 | -10/Exiles | Met 8R-AWN 1861 | -10/Exiles | Met EX-HEX 1863 | -10/Exiles | Murdered EX-HEX 1864 | -10/Exiles | Attacked by the Exiles 1870 | -10/Exiles | Core integrity fell below 50% 1905 | -10/Exiles | Core integrity fell below 20% 1926 | -10/Exiles | Destroyed by 8R-AWN with 8R-AWN's Boregun Last Messages --------------- Acquired Adv. Transmission Jammer. Penetrated by HV Slug. HV Slug penetrates Machine. HV Slug penetrates Wall. Penetrated by HV Slug. HV Slug penetrates Machine. Penetrated by HV Slug. Lgt. Treads destroyed. HV Slug penetrates as-83293. as-83293 suffers critical hit (Destroy). Penetrated by HV Slug. HV Slug penetrates as-83293. Penetrated by HV Slug. Critical hit (Destroy). Lgt. Treads destroyed. HV Slug penetrates Wall. HV Slug penetrates as-83293. HV Slug penetrates Assembled Analyzer. SAUPI,IP#YZZ2I2YAZ#T/|=S&IK1